Workbook

Sheet Blad1
A1: B | B1: I | C1: J | D1: Z | E1: E | F1: T | H1: =MID(Blad2!E1,_xlfn.SEQUENCE(,6),1) -> W | I1: y | J1: t | K1: z | L1: e | M1: s | N1: =IF( COUNTBLANK( A1:F1 ) > 0, "", IF(_xlfn.CONCAT(A1:F1)=_xlfn.CONCAT(_xlfn.ANCHORARRAY($H$1)),"Snel gevonden","")) ->  | P1: =IF(COUNTBLANK(A1:F1)>0,"",IF(ISNUMBER(MATCH(Q1,Blad2!$A$1:$A$500,0)),"OK","NB")) -> OK | Q1: =_xlfn.CONCAT(A1:F1) -> BIJZET | T1: NB | U1: =Blad2!E1 -> Wytzes | V1: =LEN(U1)-LEN(SUBSTITUTE(U1,"e","")) -> 1 | X1: 1 | Y1: =X1+30 -> 31 | Z1: =Y1+30 -> 61 | AA1: =Z1+30 -> 91 | AB1: 121 | AC1: 151 | AD1: 181 | AE1: 211 | AF1: 241 | AG1: 271 | AH1: 301 | AI1: 331 | AJ1: 361 | AK1: 391 | AL1: 421 | AM1: 451 | AN1: 481 | AP1: 1 | AQ1: =AP1+30 -> 31 | AR1: =AQ1+30 -> 61 | AS1: =AR1+30 -> 91 | AT1: 121 | AU1: 151 | AV1: 181 | AW1: 211 | AX1: 241 | AY1: 271 | AZ1: 301 | BA1: 331 | BB1: 361 | BC1: 391 | BD1: 421 | BE1: 451 | BF1: 481
N2: =IF( COUNTBLANK( A2:F2 ) > 0, "", IF(_xlfn.CONCAT(A2:F2)=_xlfn.CONCAT(_xlfn.ANCHORARRAY($H$1)),"Snel gevonden","")) ->  | P2: =IF(COUNTBLANK(A2:F2)>0,"",IF(ISNUMBER(MATCH(Q2,Blad2!$A$1:$A$500,0)),"OK","NB")) ->  | Q2: =_xlfn.CONCAT(A2:G2) ->  | X2: 2 | Y2: =X2+30 -> 32 | Z2: 62 | AA2: 92 | AB2: 122 | AC2: 152 | AD2: 182 | AE2: 212 | AF2: 242 | AG2: 272 | AH2: =AG2+30 -> 302 | AI2: 332 | AJ2: 362 | AK2: 392 | AL2: 422 | AM2: 452 | AN2: 482 | AP2: 2 | AQ2: =AP2+30 -> 32 | AR2: 62 | AS2: 92 | AT2: 122 | AU2: 152 | AV2: 182 | AW2: 212 | AX2: 242 | AY2: 272 | AZ2: 302 | BA2: 332 | BB2: 362 | BC2: 392 | BD2: 422 | BE2: 452 | BF2: 482
N3: =IF( COUNTBLANK( A3:F3 ) > 0, "", IF(_xlfn.CONCAT(A3:F3)=_xlfn.CONCAT(_xlfn.ANCHORARRAY($H$1)),"Heel goed gedaan","")) ->  | P3: =IF(COUNTBLANK(A3:F3)>0,"",IF(ISNUMBER(MATCH(Q3,Blad2!$A$1:$A$500,0)),"OK","NB")) ->  | X3: 3 | Y3: 33 | Z3: 63 | AA3: 93 | AB3: 123 | AC3: 153 | AD3: 183 | AE3: 213 | AF3: 243 | AG3: 273 | AH3: =AG3+30 -> 303 | AI3: 333 | AJ3: 363 | AK3: 393 | AL3: 423 | AM3: 453 | AN3: 483 | AP3: 3 | AQ3: 33 | AR3: 63 | AS3: 93 | AT3: 123 | AU3: 153 | AV3: 183 | AW3: 213 | AX3: 243 | AY3: 273 | AZ3: 303 | BA3: 333 | BB3: 363 | BC3: 393 | BD3: 423 | BE3: 453 | BF3: 483
N4: =IF( COUNTBLANK( A4:F4 ) > 0, "", IF(_xlfn.CONCAT(A4:F4)=_xlfn.CONCAT(_xlfn.ANCHORARRAY($H$1)),"Heel goed gedaan","")) ->  | P4: =IF(COUNTBLANK(A4:F4)>0,"",IF(ISNUMBER(MATCH(Q4,Blad2!$A$1:$A$500,0)),"OK","NB")) ->  | X4: 4 | Y4: 34 | Z4: 64 | AA4: 94 | AB4: 124 | AC4: 154 | AD4: 184 | AE4: 214 | AF4: 244 | AG4: 274 | AH4: =AG4+30 -> 304 | AI4: 334 | AJ4: 364 | AK4: 394 | AL4: 424 | AM4: 454 | AN4: 484 | AP4: 4 | AQ4: 34 | AR4: 64 | AS4: 94 | AT4: 124 | AU4: 154 | AV4: 184 | AW4: 214 | AX4: 244 | AY4: 274 | AZ4: 304 | BA4: 334 | BB4: 364 | BC4: 394 | BD4: 424 | BE4: 454 | BF4: 484
H5: 70 | P5: =IF(COUNTBLANK(A5:F5)>0,"",IF(ISNUMBER(MATCH(Q5,Blad2!$A$1:$A$500,0)),"OK","NB")) ->  | X5: 5 | Y5: 35 | Z5: 65 | AA5: 95 | AB5: 125 | AC5: 155 | AD5: 185 | AE5: 215 | AF5: 245 | AG5: 275 | AH5: =AG5+30 -> 305 | AI5: 335 | AJ5: 365 | AK5: 395 | AL5: 425 | AM5: 455 | AN5: 485 | AP5: 5 | AQ5: 35 | AR5: 65 | AS5: 95 | AT5: 125 | AU5: 155 | AV5: 185 | AW5: 215 | AX5: 245 | AY5: 275 | AZ5: 305 | BA5: 335 | BB5: 365 | BC5: 395 | BD5: 425 | BE5: 455 | BF5: 485
N6: =IF( COUNTBLANK( A6:F6 ) > 0, "", IF(_xlfn.CONCAT(A6:F6)=_xlfn.CONCAT(_xlfn.ANCHORARRAY($H$1)),"Juist op tijd","Woord niet gevonden.Dat was:"& Blad2!E1 &"")) ->  | P6: =IF(COUNTBLANK(A6:F6)>0,"",IF(ISNUMBER(MATCH(Q6,Blad2!$A$1:$A$500,0)),"OK","NB")) ->  | X6: 6 | Y6: 36 | Z6: 66 | AA6: 96 | AB6: 126 | AC6: 156 | AD6: 186 | AE6: 216 | AF6: 246 | AG6: 276 | AH6: =AG6+30 -> 306 | AI6: 336 | AJ6: 366 | AK6: 396 | AL6: 426 | AM6: 456 | AN6: 486 | AP6: 6 | AQ6: 36 | AR6: 66 | AS6: 96 | AT6: 126 | AU6: 156 | AV6: 186 | AW6: 216 | AX6: 246 | AY6: 276 | AZ6: 306 | BA6: 336 | BB6: 366 | BC6: 396 | BD6: 426 | BE6: 456 | BF6: 486
X7: 7 | Y7: 37 | Z7: 67 | AA7: 97 | AB7: 127 | AC7: 157 | AD7: 187 | AE7: 217 | AF7: 247 | AG7: 277 | AH7: =AG7+30 -> 307 | AI7: 337 | AJ7: 367 | AK7: 397 | AL7: 427 | AM7: 457 | AN7: 487 | AP7: 7 | AQ7: 37 | AR7: 67 | AS7: 97 | AT7: 127 | AU7: 157 | AV7: 187 | AW7: 217 | AX7: 247 | AY7: 277 | AZ7: 307 | BA7: 337 | BB7: 367 | BC7: 397 | BD7: 427 | BE7: 457 | BF7: 487
A8: Met Hoofdletters invullen | X8: 8 | Y8: 38 | Z8: 68 | AA8: 98 | AB8: 128 | AC8: 158 | AD8: 188 | AE8: 218 | AF8: 248 | AG8: 278 | AH8: =AG8+30 -> 308 | AI8: 338 | AJ8: 368 | AK8: 398 | AL8: 428 | AM8: 458 | AN8: 488 | AP8: 8 | AQ8: 38 | AR8: 68 | AS8: 98 | AT8: 128 | AU8: 158 | AV8: 188 | AW8: 218 | AX8: 248 | AY8: 278 | AZ8: 308 | BA8: 338 | BB8: 368 | BC8: 398 | BD8: 428 | BE8: 458 | BF8: 488
A9: Kolom P: | X9: 9 | Y9: 39 | Z9: 69 | AA9: 99 | AB9: 129 | AC9: 159 | AD9: 189 | AE9: 219 | AF9: 249 | AG9: 279 | AH9: =AG9+30 -> 309 | AI9: 339 | AJ9: 369 | AK9: 399 | AL9: 429 | AM9: 459 | AN9: 489 | AP9: 9 | AQ9: 39 | AR9: 69 | AS9: 99 | AT9: 129 | AU9: 159 | AV9: 189 | AW9: 219 | AX9: 249 | AY9: 279 | AZ9: 309 | BA9: 339 | BB9: 369 | BC9: 399 | BD9: 429 | BE9: 459 | BF9: 489
A10: OK wil zeggen woord staat in lijst Blad 2 | X10: 10 | Y10: 40 | Z10: 70 | AA10: 100 | AB10: 130 | AC10: 160 | AD10: 190 | AE10: 220 | AF10: 250 | AG10: 280 | AH10: =AG10+30 -> 310 | AI10: 340 | AJ10: 370 | AK10: 400 | AL10: 430 | AM10: 460 | AN10: 490 | AP10: 10 | AQ10: 40 | AR10: 70 | AS10: 100 | AT10: 130 | AU10: 160 | AV10: 190 | AW10: 220 | AX10: 250 | AY10: 280 | AZ10: 310 | BA10: 340 | BB10: 370 | BC10: 400 | BD10: 430 | BE10: 460 | BF10: 490
A11: NB wil zeggen woord staat niet in lijst Blad 2 | X11: 11 | Y11: 41 | Z11: 71 | AA11: 101 | AB11: 131 | AC11: 161 | AD11: 191 | AE11: 221 | AF11: 251 | AG11: 281 | AH11: =AG11+30 -> 311 | AI11: 341 | AJ11: 371 | AK11: 401 | AL11: 431 | AM11: 461 | AN11: 491 | AP11: 11 | AQ11: 41 | AR11: 71 | AS11: 101 | AT11: 131 | AU11: 161 | AV11: 191 | AW11: 221 | AX11: 251 | AY11: 281 | AZ11: 311 | BA11: 341 | BB11: 371 | BC11: 401 | BD11: 431 | BE11: 461 | BF11: 491
A12: Typ dit dan in kolom T en druk Enter.(mag U altijd gebruiken) | X12: 12 | Y12: 42 | Z12: 72 | AA12: 102 | AB12: 132 | AC12: 162 | AD12: 192 | AE12: 222 | AF12: 252 | AG12: 282 | AH12: =AG12+30 -> 312 | AI12: 342 | AJ12: 372 | AK12: 402 | AL12: 432 | AM12: 462 | AN12: 492 | AP12: 12 | AQ12: 42 | AR12: 72 | AS12: 102 | AT12: 132 | AU12: 162 | AV12: 192 | AW12: 222 | AX12: 252 | AY12: 282 | AZ12: 312 | BA12: 342 | BB12: 372 | BC12: 402 | BD12: 432 | BE12: 462 | BF12: 492
A13: U1 het te zoeken woord(wit gemaakt) | X13: 13 | Y13: 43 | Z13: 73 | AA13: 103 | AB13: 133 | AC13: 163 | AD13: 193 | AE13: 223 | AF13: 253 | AG13: 283 | AH13: =AG13+30 -> 313 | AI13: 343 | AJ13: 373 | AK13: 403 | AL13: 433 | AM13: 463 | AN13: 493 | AP13: 13 | AQ13: 43 | AR13: 73 | AS13: 103 | AT13: 133 | AU13: 163 | AV13: 193 | AW13: 223 | AX13: 253 | AY13: 283 | AZ13: 313 | BA13: 343 | BB13: 373 | BC13: 403 | BD13: 433 | BE13: 463 | BF13: 493
A14: V1 formule hoeveel letters"e" het woord heeft.(0,1 of 2)misschien soms 3, 4 en 5 en 6 nooit | X14: 14 | Y14: 44 | Z14: 74 | AA14: 104 | AB14: 134 | AC14: 164 | AD14: 194 | AE14: 224 | AF14: 254 | AG14: 284 | AH14: =AG14+30 -> 314 | AI14: 344 | AJ14: 374 | AK14: 404 | AL14: 434 | AM14: 464 | AN14: 494 | AP14: 14 | AQ14: 44 | AR14: 74 | AS14: 104 | AT14: 134 | AU14: 164 | AV14: 194 | AW14: 224 | AX14: 254 | AY14: 284 | AZ14: 314 | BA14: 344 | BB14: 374 | BC14: 404 | BD14: 434 | BE14: 464 | BF14: 494
A15: Geheel rechts kan U aanduiden welk cijfer U heeft gedaan.(rood(alleen ) of groen(met een ander) | X15: 15 | Y15: 45 | Z15: 75 | AA15: 105 | AB15: 135 | AC15: 165 | AD15: 195 | AE15: 225 | AF15: 255 | AG15: 285 | AH15: =AG15+30 -> 315 | AI15: 345 | AJ15: 375 | AK15: 405 | AL15: 435 | AM15: 465 | AN15: 495 | AP15: 15 | AQ15: 45 | AR15: 75 | AS15: 105 | AT15: 135 | AU15: 165 | AV15: 195 | AW15: 225 | AX15: 255 | AY15: 285 | AZ15: 315 | BA15: 345 | BB15: 375 | BC15: 405 | BD15: 435 | BE15: 465 | BF15: 495
X16: 16 | Y16: 46 | Z16: 76 | AA16: 106 | AB16: 136 | AC16: 166 | AD16: 196 | AE16: 226 | AF16: 256 | AG16: 286 | AH16: =AG16+30 -> 316 | AI16: 346 | AJ16: 376 | AK16: 406 | AL16: 436 | AM16: 466 | AN16: 496 | AP16: 16 | AQ16: 46 | AR16: 76 | AS16: 106 | AT16: 136 | AU16: 166 | AV16: 196 | AW16: 226 | AX16: 256 | AY16: 286 | AZ16: 316 | BA16: 346 | BB16: 376 | BC16: 406 | BD16: 436 | BE16: 466 | BF16: 496
A17: De lange "IJ" telt voor twee cellen(zie voorbeeld) | X17: 17 | Y17: 47 | Z17: 77 | AA17: 107 | AB17: 137 | AC17: 167 | AD17: 197 | AE17: 227 | AF17: 257 | AG17: 287 | AH17: =AG17+30 -> 317 | AI17: 347 | AJ17: 377 | AK17: 407 | AL17: 437 | AM17: 467 | AN17: 497 | AP17: 17 | AQ17: 47 | AR17: 77 | AS17: 107 | AT17: 137 | AU17: 167 | AV17: 197 | AW17: 227 | AX17: 257 | AY17: 287 | AZ17: 317 | BA17: 347 | BB17: 377 | BC17: 407 | BD17: 437 | BE17: 467 | BF17: =BE17+30 -> 497
X18: 18 | Y18: 48 | Z18: 78 | AA18: 108 | AB18: 138 | AC18: 168 | AD18: 198 | AE18: 228 | AF18: 258 | AG18: 288 | AH18: =AG18+30 -> 318 | AI18: 348 | AJ18: 378 | AK18: 408 | AL18: 438 | AM18: 468 | AN18: 498 | AP18: 18 | AQ18: =AP18+30 -> 48 | AR18: 78 | AS18: 108 | AT18: 138 | AU18: 168 | AV18: 198 | AW18: 228 | AX18: 258 | AY18: 288 | AZ18: 318 | BA18: 348 | BB18: 378 | BC18: 408 | BD18: 438 | BE18: 468 | BF18: 498
X19: 19 | Y19: 49 | Z19: 79 | AA19: 109 | AB19: 139 | AC19: 169 | AD19: 199 | AE19: 229 | AF19: 259 | AG19: 289 | AH19: =AG19+30 -> 319 | AI19: 349 | AJ19: 379 | AK19: 409 | AL19: 439 | AM19: 469 | AN19: 499 | AP19: 19 | AQ19: 49 | AR19: 79 | AS19: 109 | AT19: 139 | AU19: 169 | AV19: 199 | AW19: 229 | AX19: 259 | AY19: 289 | AZ19: 319 | BA19: 349 | BB19: 379 | BC19: 409 | BD19: 439 | BE19: 469 | BF19: 499
X20: 20 | Y20: 50 | Z20: 80 | AA20: 110 | AB20: 140 | AC20: 170 | AD20: 200 | AE20: 230 | AF20: 260 | AG20: 290 | AH20: =AG20+30 -> 320 | AI20: 350 | AJ20: 380 | AK20: 410 | AL20: 440 | AM20: 470 | AN20: 500 | AP20: 20 | AQ20: 50 | AR20: 80 | AS20: 110 | AT20: 140 | AU20: 170 | AV20: 200 | AW20: 230 | AX20: 260 | AY20: 290 | AZ20: 320 | BA20: 350 | BB20: 380 | BC20: 410 | BD20: 440 | BE20: 470 | BF20: 500
X21: 21 | Y21: 51 | Z21: 81 | AA21: 111 | AB21: 141 | AC21: 171 | AD21: 201 | AE21: 231 | AF21: 261 | AG21: 291 | AH21: =AG21+30 -> 321 | AI21: 351 | AJ21: 381 | AK21: 411 | AL21: 441 | AM21: 471 | AP21: 21 | AQ21: 51 | AR21: 81 | AS21: 111 | AT21: 141 | AU21: 171 | AV21: 201 | AW21: 231 | AX21: 261 | AY21: 291 | AZ21: 321 | BA21: 351 | BB21: 381 | BC21: 411 | BD21: 441 | BE21: 471
X22: 22 | Y22: 52 | Z22: 82 | AA22: 112 | AB22: 142 | AC22: 172 | AD22: 202 | AE22: 232 | AF22: 262 | AG22: 292 | AH22: =AG22+30 -> 322 | AI22: 352 | AJ22: 382 | AK22: 412 | AL22: 442 | AM22: 472 | AP22: 22 | AQ22: 52 | AR22: 82 | AS22: 112 | AT22: 142 | AU22: 172 | AV22: 202 | AW22: 232 | AX22: 262 | AY22: 292 | AZ22: 322 | BA22: 352 | BB22: 382 | BC22: 412 | BD22: 442 | BE22: 472
X23: 23 | Y23: 53 | Z23: 83 | AA23: 113 | AB23: 143 | AC23: 173 | AD23: 203 | AE23: 233 | AF23: 263 | AG23: 293 | AH23: =AG23+30 -> 323 | AI23: 353 | AJ23: 383 | AK23: 413 | AL23: 443 | AM23: 473 | AP23: 23 | AQ23: 53 | AR23: 83 | AS23: 113 | AT23: 143 | AU23: 173 | AV23: 203 | AW23: 233 | AX23: 263 | AY23: 293 | AZ23: 323 | BA23: 353 | BB23: 383 | BC23: 413 | BD23: 443 | BE23: 473
X24: 24 | Y24: 54 | Z24: 84 | AA24: 114 | AB24: 144 | AC24: 174 | AD24: 204 | AE24: 234 | AF24: 264 | AG24: 294 | AH24: =AG24+30 -> 324 | AI24: 354 | AJ24: 384 | AK24: 414 | AL24: 444 | AM24: 474 | AP24: 24 | AQ24: 54 | AR24: 84 | AS24: 114 | AT24: 144 | AU24: 174 | AV24: 204 | AW24: 234 | AX24: 264 | AY24: 294 | AZ24: 324 | BA24: 354 | BB24: 384 | BC24: 414 | BD24: 444 | BE24: 474
X25: 25 | Y25: 55 | Z25: 85 | AA25: 115 | AB25: 145 | AC25: 175 | AD25: 205 | AE25: 235 | AF25: 265 | AG25: =AF25+30 -> 295 | AH25: 325 | AI25: 355 | AJ25: 385 | AK25: 415 | AL25: 445 | AM25: 475 | AP25: 25 | AQ25: 55 | AR25: 85 | AS25: 115 | AT25: 145 | AU25: 175 | AV25: 205 | AW25: 235 | AX25: 265 | AY25: 295 | AZ25: 325 | BA25: 355 | BB25: 385 | BC25: 415 | BD25: 445 | BE25: 475
X26: 26 | Y26: 56 | Z26: 86 | AA26: 116 | AB26: 146 | AC26: 176 | AD26: 206 | AE26: 236 | AF26: 266 | AG26: =AF26+30 -> 296 | AH26: 326 | AI26: 356 | AJ26: 386 | AK26: 416 | AL26: 446 | AM26: 476 | AP26: 26 | AQ26: 56 | AR26: 86 | AS26: 116 | AT26: 146 | AU26: 176 | AV26: 206 | AW26: 236 | AX26: 266 | AY26: 296 | AZ26: 326 | BA26: 356 | BB26: 386 | BC26: 416 | BD26: 446 | BE26: 476
X27: 27 | Y27: 57 | Z27: 87 | AA27: 117 | AB27: 147 | AC27: 177 | AD27: 207 | AE27: 237 | AF27: 267 | AG27: =AF27+30 -> 297 | AH27: 327 | AI27: 357 | AJ27: 387 | AK27: 417 | AL27: 447 | AM27: 477 | AP27: 27 | AQ27: 57 | AR27: 87 | AS27: 117 | AT27: 147 | AU27: 177 | AV27: 207 | AW27: 237 | AX27: 267 | AY27: 297 | AZ27: 327 | BA27: 357 | BB27: 387 | BC27: 417 | BD27: 447 | BE27: 477
X28: 28 | Y28: 58 | Z28: 88 | AA28: 118 | AB28: 148 | AC28: 178 | AD28: 208 | AE28: 238 | AF28: 268 | AG28: =AF28+30 -> 298 | AH28: 328 | AI28: 358 | AJ28: 388 | AK28: 418 | AL28: 448 | AM28: 478 | AP28: 28 | AQ28: 58 | AR28: 88 | AS28: 118 | AT28: 148 | AU28: 178 | AV28: 208 | AW28: 238 | AX28: 268 | AY28: 298 | AZ28: 328 | BA28: 358 | BB28: 388 | BC28: 418 | BD28: 448 | BE28: 478
X29: 29 | Y29: 59 | Z29: 89 | AA29: 119 | AB29: 149 | AC29: 179 | AD29: 209 | AE29: 239 | AF29: 269 | AG29: =AF29+30 -> 299 | AH29: 329 | AI29: 359 | AJ29: 389 | AK29: 419 | AL29: 449 | AM29: 479 | AP29: 29 | AQ29: 59 | AR29: 89 | AS29: 119 | AT29: 149 | AU29: 179 | AV29: 209 | AW29: 239 | AX29: 269 | AY29: 299 | AZ29: 329 | BA29: 359 | BB29: 389 | BC29: 419 | BD29: 449 | BE29: 479
X30: 30 | Y30: 60 | Z30: 90 | AA30: 120 | AB30: 150 | AC30: 180 | AD30: 210 | AE30: 240 | AF30: 270 | AG30: =AF30+30 -> 300 | AH30: 330 | AI30: 360 | AJ30: 390 | AK30: 420 | AL30: 450 | AM30: 480 | AP30: 30 | AQ30: 60 | AR30: 90 | AS30: 120 | AT30: 150 | AU30: 180 | AV30: 210 | AW30: 240 | AX30: 270 | AY30: 300 | AZ30: 330 | BA30: 360 | BB30: 390 | BC30: 420 | BD30: 450 | BE30: 480
AD33: ROOD

Sheet Blad2
A1: Accept | C1: =INDEX($A:$A,RANDBETWEEN(1,COUNTA($A:$A)),1) -> Beauty | E1: =INDEX($A:$A,Blad1!H5) -> Wytzes
A2: Tectyl
A3: Tomboy
A4: Zwijmt
A5: Dummys
A6: Zijpad
A7: Quidam
A8: Rallyt
A9: Burcht
A10: Typist
A11: Idylle
A12: Cyclus
A13: Juicht
A14: Zwerft
A15: Afwijk
A16: Backup
A17: Elixir
A18: Huskys
A19: Thymus
A20: Hetzij
A21: Schiep
A22: Hybris
A23: Zwijnt
A24: Klacht
A25: Lollys
A26: Lexica
A27: Squash
A28: Bijzit
A29: Afzuip
A30: Hockey
A31: Vlezig
A32: Baggys
A33: Cypres
A34: Fysica
A35: Cowboy
A36: Xyleem
A37: Zwijgt
A38: Vrucht
A39: Zlotys
A40: Bubbel
A41: Jezelf
A42: Afzwom
A43: Ruwweg
A44: Calque
A45: Schift
A46: Lynxje
A47: Shanty
A48: Volley
A49: Cachet
A50: Sexyst
A51: Joyces
A52: Jersey
A53: Lijfje
A54: Maxima
A55: Bypass
A56: Mixtum
A57: Quints
A58: Pitcht
A59: Spicht
A60: Sylfen
A61: Bespuw
A62: Ghibil
A63: Bijzet
A64: Brique
A65: Gympje
A66: Tyfeus
A67: Fysici
A68: Kitsch
A69: Wicket
A70: Wytzes
A71: Chipje
A72: Exacts
A73: Grungy
A74: Rijzig
A75: Zwicht
A76: Kwibus
A77: Papzak
A78: Quizde
A79: Bijgaf
A80: Hiphop
A81: Sprayt
A82: Yusufs
A83: Cyborg
A84: Liquor
A85: Gympen
A86: Partys
A87: Kippig
A88: Wherry
A89: Funkys
A90: Schrik
A91: Scherp
A92: Wichel
A93: Bisque
A94: Cysten
A95: Bijvul
A96: Mazzel
A97: Sulkys
A98: Fysios
A99: Claque
A100: Cliffs
A101: Quasar
A102: Vlecht
A103: Wipkip
A104: Hypend
A105: Bogeys
A106: Afkick
A107: Zwever
A108: Zwierf
A109: Lijkwa
A110: Glossy
A111: Crypte
A112: Skibox
A113: Skybox
A114: Beauty
A115: Schoft
A116: Zymose
A117: Yquems
A118: Gipsys
A119: Reflex
A120: Zijzak
A121: Zonzij
A122: Quiche
A123: Schalm
A124: Bijvak
A125: Pelzig
A126: Zwikje
A127: Lychee
A128: Zwalpt
A129: Wimpel
A130: Faxjes
A131: Ijsbox
A132: Squire
A133: Floppy
A134: Scherf
A135: Climax
A136: Pifpaf
A137: Flashy
A138: Sequel
A139: Jazzys
A140: Cachot
A141: Gymjuf
A142: Gekuch
A143: Hobbyt
A144: Vijfje
A145: Maquis
A146: Onyxen
A147: Prozac
A148: Putsch
A149: Cheque
A150: Chucks
A151: Groggy
A152: Flexie
A153: Humbug
A154: Bijlap
A155: Mixage
A156: Quotum
A157: Tricky
A158: Thalys
A159: Pantry
A160: Bochel
A161: Biecht
A162: Gifpil
A163: Shimmy
A164: Thorax
A165: Tariqs
A166: Schuwe
A167: Zigzag
A168: Jockey
A169: Wijsje
A170: Clipje
A171: Kuchje
A172: Waxjes
A173: Exquis
A174: Bijval
A175: Behuwd
A176: Placht
A177: Kwezel
A178: Yuccas
A179: Kinkys
A180: Schelf
A181: Prefix
A182: Baxter
A183: Zitzak
A184: Baljuw
A185: Chicst
A186: Ceylon
A187: Blijkt
A188: Dinghy
A189: Freaky
A190: County
A191: Switch
A192: Brunch
A193: Schelm
A194: Epoque
A195: Bitcht
A196: Equipe
A197: Bijweg
A198: Glycol
A199: Clinic
A200: Kwikwi
... 300 more rows
